Cogmind - Beta 13 *** ADVENTURER MODE // 2024.04.05 @ 14:52:32 Player: kripton Result: Self-destructed Performance ------------- Evolutions (1) 500 Regions Visited (3) 600 Robots Destroyed (54) 270 Value Destroyed (1355) 1355 Prototype IDs (0) 0 Alien Tech Used (0) 0 Bonus (30) 30 TOTAL SCORE: 2755 Bonus ------- High Alert Combat Kills 30 Cogmind --------- Core Integrity 263/400 Matter 94/300 Energy 244/250 System Corruption 0% Temperature Cool (3) Movement Treading (240) Ox1 Location -9/Storage Parts ------- > --- POWER (1) -------- Ion Engine > --- PROPULSION (3) --- Light Treads Light Treads Light Treads > --- UTILITY (3) ------ Huge Storage Unit Visual Processing Unit Light Armor Plating > --- WEAPON (2) ------- Grenade Launcher > --- INVENTORY (25) --- Improved Ion Engine Light Treads Heat Sink Improved Heat Sink Medium Matter Pod (0) Medium Laser Small Laser Light Assault Rifle Heavy Assault Rifle Peak State ------------ > --- POWER ------------ Improved Ion Engine > --- PROPULSION ------- Light Treads Light Treads Light Treads > --- UTILITY ---------- Improved Heat Sink Huge Storage Unit Visual Processing Unit > --- WEAPON ----------- Medium Laser Small Laser > --- INVENTORY -------- Ion Engine Improved Ion Engine Light Treads Light Treads Heat Sink Medium Matter Pod Grenade Launcher Grenade Launcher Grenade Launcher [Rating: 14] Favorites ----------- Power Ion Engine Engine Ion Engine Propulsion Light Treads Treads Light Treads Leg Aluminum Leg Utility Visual Processing Unit Device Improved Heat Sink Storage Huge Storage Unit Processor Visual Processing Unit Protection Light Armor Plating Weapon Grenade Launcher Energy Gun Medium Laser Launcher Grenade Launcher Build | -11 -10 -9 -9 ------- Run | Yrd Mat Mat Sto Slots Evolved 2 | . . 2 . Power . | . . . . Propulsion 1 | . . 1 . Utility 1 | . . 1 . Weapon . | . . . . Parts Attached 45 | 6 9 10 20 Power 4 | 1 . 1 2 Engine 4 | 1 . 1 2 Core . | . . . . Reactor . | . . . . Propulsion 7 | 2 . 1 4 Treads 5 | . . 1 4 Leg 2 | 2 . . . Wheel . | . . . . Hover . | . . . . Flight . | . . . . Utility 9 | 1 1 4 3 Device 2 | . . 1 1 Storage 5 | 1 1 2 1 Processor 1 | . . 1 . Hackware . | . . . . Protection 1 | . . . 1 Artifact . | . . . . Weapon 25 | 2 8 4 11 Energy Gun 12 | 2 3 2 5 Energy Cannon . | . . . . Ballistic Gun . | . . . . Ballistic Cannon . | . . . . Launcher 13 | . 5 2 6 Special Weapon . | . . . . Impact Weapon . | . . . . Slashing Weapon . | . . . . Piercing Weapon . | . . . . Special Melee Weapon . | . . . . Unidentified Prototypes . | . . . . Parts Lost 7 | . . 1 6 Power 2 | . . 1 1 Propulsion 2 | . . . 2 Utility . | . . . . Weapon 3 | . . . 3 Highest Loss Streak 1 | . . 1 1 To Critical Strikes . | . . . . Average Slot Usage (%) 95 | . 87 92 97 Engine 10 | . 14 6 10 Treads 25 | . . 11 31 Leg 7 | . 28 22 1 Device 5 | . . 6 6 Storage 14 | . 17 22 12 Processor 8 | . . 2 11 Protection 1 | . . . 2 Energy Gun 5 | . 12 15 2 Launcher 15 | . 14 6 17 Naked Turns . | . . . . Heaviest Build 94 | 14 18 18 94 Greatest Support 60 | 20 20 20 60 Greatest Overweight (x) 2 | 1 . . 2 Average Overweight (x) . | . . . . Largest Inventory Capacity 25 | 8 8 15 25 Average Capacity 18 | 7 8 8 22 Most Carried 10 | 7 8 8 10 Average Carried 7 | 3 6 7 8 Final Capacity 25 | 8 8 8 25 Final Carried 9 | 3 8 8 9 Class Distribution -------------------- 64% | Scavenger-Mutant 35% | Mutant Dominant Class ---------------- Mutant | -10/Materials Mutant | -9/Materials Scavenger-Mutant | -9/Storage Resources | -11 -10 -9 -9 ----------- Run | Yrd Mat Mat Sto Matter Collected 1087 | 247 84 170 586 Remotely . | . . . . Salvage Created 1194 | . 122 172 900 Parts 68 | . 9 10 49 Haulers Intercepted . | . . . . Recyclers Shooed 2 | . 1 . 1 Parts Field Recycled . | . . . . Retrieved Matter . | . . . . Parts Self-Destructed . | . . . . Prevented . | . . . . Kills | -11 -10 -9 -9 ------- Run | Yrd Mat Mat Sto Combat Hostiles Destroyed 36 | . 5 8 23 Guns 9 | . 2 4 3 AOE 26 | . 3 4 19 Classes Destroyed 7 | . 3 2 2 Worker 8 | . . . 8 Builder 2 | . 1 . 1 Recycler 3 | . . . 3 Watcher 5 | . 2 1 2 Swarmer 9 | . . 6 3 Grunt 15 | . 5 1 9 Sentry 12 | . . 1 11 Best Kill Streak 14 | . 6 3 14 Combat Bots Only 8 | . 3 3 8 Max Kills in Single Turn 4 | . 2 2 4 Gunslinging . | . . . . Exploded 3 | . 2 2 3 Melee . | . . . . Uniques/NPCs Destroyed . | . . . . Combat | -11 -10 -9 -9 -------- Run | Yrd Mat Mat Sto Hostile Shots Fired 129 | . 21 28 80 Missed 39 | . 5 11 23 Damage Taken 1115 | . 174 156 785 Core 146 | . 9 41 96 Absorbed by Shields . | . . . . Ignored by Resistances 328 | . 54 47 227 Core Remaining (%) 98 | 100 96 . . Volleys Fired 72 | . 18 13 41 Largest 2 | . 2 2 2 Hottest 100 | . 60 100 100 Shots Fired 128 | . 22 26 80 Gun 58 | . 12 20 26 Cannon . | . . . . Launcher 70 | . 10 6 54 Special . | . . . . Kinetic . | . . . . Thermal 58 | . 12 20 26 Explosive 70 | . 10 6 54 Electromagnetic . | . . . . Robot Hit Streak 21 | . 7 9 21 Robot Miss Streak 3 | . 1 3 1 Penetration Max . | . . . . Secondary Targets . | . . . . Shots Hit Robots 89 | . 17 16 56 Core Hits 110 | . 19 13 78 Critical Kills . | . . . . Critical Parts Destroyed . | . . . . Critical Strikes 5 | . 1 3 1 Burn 5 | . 1 3 1 Melee Attacks . | . . . . Impact . | . . . . Slashing . | . . . . Piercing . | . . . . Sneak Attacks . | . . . . Combat Hostiles . | . . . . Follow-up Attacks . | . . . . Damage Inflicted 3143 | . 592 451 2100 Guns 601 | . 124 173 304 Cannons . | . . . . Explosions 2516 | . 468 269 1779 Melee . | . . . . Ramming 26 | . . 9 17 Kinetic . | . . . . Thermal 601 | . 124 173 304 Explosive 2516 | . 468 269 1779 Electromagnetic . | . . . . Impact . | . . . . Slashing . | . . . . Piercing . | . . . . Highest Corruption . | . . . . Average Corruption . | . . . . Corruption Purged . | . . . . Corruption Blocked . | . . . . Overload Shots . | . . . . Overflow Damage 41 | . 16 . 25 Projectiles . | . . . . Explosions 41 | . 16 . 25 Melee . | . . . . Knockbacks . | . . . . Impact . | . . . . Kinetic . | . . . . Secondary . | . . . . Self-Inflicted Damage 164 | . . 23 141 Shots 10 | . . 1 9 Rammed 3 | . . . 3 Targets Rammed 6 | . . 3 3 Kicked 3 | . . 3 . Crushed . | . . . . Highest Temperature 282 | . 126 73 282 Average Temperature 68 | . 43 32 102 Received Heat Transfer 486 | . 126 57 303 Effects 4 | . . . 4 Energy Bleed 1 | . . . 1 Interference 3 | . . . 3 Siege Activations . | . . . . Robots Corrupted . | . . . . Combat Hostiles . | . . . . Parts Fried . | . . . . Impact Corruptions . | . . . . Robots Melted 1 | . . . 1 Combat Hostiles 1 | . . . 1 Parts Melted 5 | . . 1 4 Heat Transferred 2147 | . 444 740 963 Parts Sabotaged . | . . . . Parts Stolen . | . . . . Parts Stripped . | . . . . Power Chain Reactions . | . . . . Alert | -11 -10 -9 -9 ------- Run | Yrd Mat Mat Sto Peak Influence 502 | . 211 250 502 Initial 75 | . . 75 49 Average 204 | . 93 139 244 Maximum Alert Level 2 | . 1 1 2 Low Security (%) 46 | 100 69 73 35 Level 1 51 | . 30 26 61 Level 2 2 | . . . 2 Level 3 . | . . . . Level 4 . | . . . . Level 5 . | . . . . High Security . | . . . . Max Security . | . . . . Squads Dispatched 3 | . . . 3 Investigation 1 | . . . 1 Extermination . | . . . . Reinforcement 2 | . . . 2 Assault . | . . . . Garrison . | . . . . Intercept . | . . . . Searches Triggered . | . . . . Construction Impeded . | . . . . Haulers Reinforced . | . . . . Active Scanning Responses . | . . . . Cargo Convoy Interrupts . | . . . . Stealth | -11 -10 -9 -9 --------- Run | Yrd Mat Mat Sto Distress Signals 2 | . 1 . 1 Communications Jammed . | . . . . Distress Signals . | . . . . Times Spotted 42 | . 8 9 25 Peak Tracking Total 5 | . 5 3 5 Tactical Retreats 2 | . 1 1 . Traps | -11 -10 -9 -9 ------- Run | Yrd Mat Mat Sto Traps Triggered 3 | . . 1 2 Indirectly . | . . . . Trap Hack Attempts . | . . . . Triggered . | . . . . Disarmed . | . . . . Reprogrammed . | . . . . Reused . | . . . . Traps Extracted . | . . . . Installed . | . . . . Triggered . | . . . . Machines | -11 -10 -9 -9 ---------- Run | Yrd Mat Mat Sto Machines Disabled 6 | . . . 6 Max in Single Turn 2 | . . . 2 Machines Repaired . | . . . . Machines Dismantled . | . . . . Machines Sabotaged . | . . . . Overloaded Fab Kills . | . . . . Hacking | -11 -10 -9 -9 --------- Run | Yrd Mat Mat Sto Machines Accessed 3 | . . 1 2 Terminals 3 | . . 1 2 Fabricators . | . . . . Repair Stations . | . . . . Recycling Units . | . . . . Scanalyzers . | . . . . Garrison Access . | . . . . Total Hacks 6 | . . 1 5 Successful 3 | . . 1 2 Failed 3 | . . . 3 Catastrophic . | . . . . Database Lockouts . | . . . . Manual . | . . . . Terminals 6 | . . 1 5 Fabricators . | . . . . Repair Stations . | . . . . Recycling Units . | . . . . Scanalyzers . | . . . . Garrison Access . | . . . . Terminal Hacks 3 | . . 1 2 Record 1 | . . 1 . Alert Level 2 | . . . 2 Fabricator Hacks . | . . . . Repair Station Hacks . | . . . . Recycling Unit Hacks . | . . . . Scanalyzer . | . . . . Garrison Access Hacks . | . . . . Unauthorized Hacks . | . . . . Terminals . | . . . . Fabricators . | . . . . Repair Stations . | . . . . Recycling Units . | . . . . Scanalyzers . | . . . . Garrison Access . | . . . . Data Cores Recovered . | . . . . Used . | . . . . Hacking Detections 2 | . . . 2 Full Trace Events 1 | . . . 1 Feedback Events . | . . . . Feedback Blocked . | . . . . Robot Schematics Acquired . | . . . . Robots Built . | . . . . Authchips . | . . . . Time . | . . . . Total Robot Build Rating . | . . . . Part Schematics Acquired . | . . . . Parts Built . | . . . . Authchips . | . . . . Time . | . . . . Total Part Build Rating . | . . . . Parts Repaired . | . . . . Time . | . . . . Parts Recycled . | . . . . Recycled Matter . | . . . . Retrieved Matter . | . . . . Retrieved Components . | . . . . Parts Scanalyzed . | . . . . Part Schematics Acquired . | . . . . Parts Damaged . | . . . . Bothacking | -11 -10 -9 -9 ------------ Run | Yrd Mat Mat Sto Used RIF Installer . | . . . . Robots Hacked . | . . . . Non-combat . | . . . . Combat . | . . . . Robot Hacks Applied . | . . . . Relay Couplers Released . | . . . . Fabnet Peak Effective % . | . . . . Robots Rewired . | . . . . Allies Hacked . | . . . . Hacks Repelled . | . . . . Allies | -11 -10 -9 -9 -------- Run | Yrd Mat Mat Sto Total Allies . | . . . . Largest Group . | . . . . Highest-Rated Group . | . . . . Highest-Rated Ally . | . . . . Total Orders . | . . . . Ally Attacks . | . . . . Total Damage . | . . . . Kills . | . . . . Allies Corrupted . | . . . . Allies Melted . | . . . . Intel | -11 -10 -9 -9 ------- Run | Yrd Mat Mat Sto Robot Analysis Total . | . . . . Derelict Logs Recovered . | . . . . Drone Launches . | . . . . Drone Recoveries . | . . . . Exploration | -11 -10 -9 -9 ------------- Run | Yrd Mat Mat Sto Turns Passed 3111 | 91 371 426 2223 Spaces Moved 1501 | 71 247 264 919 Core 35 | 35 . . . Treads 847 | . . . 847 Legs 619 | 36 247 264 72 Wheels . | . . . . Hover . | . . . . Flight . | . . . . Fastest Speed 50 | 50 120 120 120 Average Speed 181 | 108 120 120 221 Slowest Speed 320 | 120 120 120 320 Overloaded Moves . | . . . . Propulsion Burnouts . | . . . . Robots Hopped . | . . . . Cave-ins Triggered . | . . . . Exploration Rate (%) 36 | 4 36 20 84 Regions Visited 3 Branch Regions 1 Pre-discovered Areas . | . . . . Known Exits Taken . | . . . . Unknown Exits Taken 3 | 1 1 1 . Scrap Searched . | . . . . Spaces Dug . | . . . . Terrain Destroyed 302 | . 26 33 243 Melee . | . . . . Projectile . | . . . . AOE 302 | . 26 33 243 Terrain Rammed . | . . . . Walls Destroyed . | . . . . Machines Disabled . | . . . . Actions | -11 -10 -9 -9 --------- Run | Yrd Mat Mat Sto Total 1754 | 85 303 344 1022 Wait 69 | . 7 48 14 Move 1497 | 70 246 263 918 Hop . | . . . . Pick Up 43 | 9 13 5 16 Fast Attach . | . . . . Attach 23 | 6 5 4 8 Detach 3 | . 3 . . Swap 22 | . 4 6 12 Drop 19 | . 7 2 10 Fire 72 | . 18 13 41 Melee . | . . . . Ram . | . . . . Kick 3 | . . 3 . Crush 3 | . . . 3 Escape Stasis . | . . . . Rewire . | . . . . Trap . | . . . . Miscellaneous . | . . . . Route ------- -11/Scrapyard -10/Materials (discovered 3 exits: *Mat / [*Min x2]) -9/Materials -9/Storage (discovered 1 exit: [*Mat]) History --------- Turn | Location | Event 24 | -11/Scrapyard | Discovered new exit (range 15) 92 | -11/Scrapyard | Entered Materials 92 | -10/Materials | Discovered new exit (range 15) 302 | -10/Materials | Build established: Mutant 333 | -10/Materials | Discovered new exit (range 7) 454 | -10/Materials | Discovered new exit (range 5) 463 | -10/Materials | Entered another Materials area 463 | -9/Materials | Evolved 2 slots: Propulsion x1, Utility x1 872 | -9/Materials | Discovered new exit (range 5) 889 | -9/Materials | Entered Storage 1275 | -9/Storage | Destroyed 8 combat bots 1525 | -9/Storage | Build established: Scavenger-Mutant 3067 | -9/Storage | Discovered new exit (range 17) 3112 | -9/Storage | Self-destructed Last Messages --------------- 02726_ U-05 Engineer builds a Wall. 02727_ K-01 Serf collects debris. 02731_ U-05 Engineer lays Concrete. 02731_ U-05 Engineer builds a Wall. 02731_ K-01 Serf collects debris. 02732_ U-05 Engineer builds a Wall. 02735_ U-05 Engineer lays Concrete. 02737_ U-05 Engineer builds a Wall. 02740_ U-05 Engineer lays Concrete. 02741_ The unstable cave ceiling collapses. 02741_ Slammed into U-05 Engineer. 02743_ K-01 Serf collects debris. 02797_ Connecting with Door Terminal... 02813_ Connecting with Terminal... 02916_ K-01 Serf cleans the Component Storage. 02926_ K-01 Serf collects debris. 03067_ EXIT=FOUND 03067_ Triggered Explosive Trap. 03067_ An explosion rips through the floor. 03067_ Grenade Launcher destroyed. Map ----- +----------------------------------------------------+ | ????# #?????????????????????? | | ????# #?????????????????????? | | ????# #?????????????????????? | | ????# #???????????????????### | | ????# #???????????????????# | | ????# ###??????#######????# | | ???## ########## #????# | | ???# "" ###### | | ????# T + | | ????# ###### | | ????# ######## #????# | | ????# ##??????## ##????# | | ????# ##????????# #?????### | | ????# a#?????????# #???????? | | ????# #?????????# ######### | | ????# #?????????# # | | ????# ########### # """""?? | | ????# # ## # """""?? | | ????# # # # """"" | | ????# #?"""""" + | | ????# #??????" # # """ | | ????# +??????" # # "R | | ????# # """""" ## # """ | | ????# # +^^ ^# | | ????# # #### ########+ | | ????# @ # #??#^#??????# | | ????# ##########??# #??##### | | ????#####???????????# #### ## | | ????????????????????# # | | ????????????????????# + # | | ????????????????????# # | | ????????????????????# # | | ????????????????????# # | | ????????????????????# # | | ????????????????????# #### # | | ????????????????????# * | | ????????????????????##### # | | ????????????????????????####### | | ??????????????????????????????? | | ??????????????????????????????? | | | | | | | | | | | | | | | | | | | | | +----------------------------------------------------+ Best States ------------- Heat Dissipation 42 Energy Generation 12 Energy Capacity 265 Matter Stores 312 Matter Capacity 400 Sight Range 18 Terrain Scan Density 10 Armor Coverage 150 Resistance: KI 20 Resistance: TH 20 Resistance: EX 20 Resistance: EM 20 Resistance: I 20 Resistance: S 20 Resistance: P 20 Evasion (%) 55 Recoil Reduction 3 Offensive Hacking 10 Item Schematics ----------------- None Robot Schematics ------------------ None Fabricated ------------ Nothing Alien Tech Used ----------------- None Achievements -------------- None Challenges ------------ None Game ------ Seed MetafiberFrostAnalyzer Manual? 0 Play Time 00:23:19 Cumulative 2.7 hours Start 2024.04.04 @ 17:03:53 End 2024.04.05 @ 14:52:32 Sessions 1 Manual Loads 0 Difficulty Adventurer Special Mode None Game No. 5 Rogue 1 Adventurer 3 Explorer 1 Win Type - Total 0 Types 0/0/0/0/0/0/0/0/0 Lore% 3 Gallery% 7 Achievement% 7 Wizard Run 0 Options --------- Layout 0 ASCII 0 Keyboard 0 Movement Arrows Keybinds 0 Fullscreen 2 Font 18/SmallcapsGlow Map View 76x50 Zoom Use 0% Tactical HUD 1 Map Filters NONE Filters NONE Steam 1 RUN: 358554de-d845-4629-a383-c8577b14b2ee